{"text_format":"1","workbook":"xlsx","n_sheets":3,"sheets":["Tabelle1","Tabelle2","Tabelle3"],"not_rendered":{"charts":0,"images":0,"macros":1,"external_links":0,"defined_names":1,"comments":0,"pivot_tables":0},"unopened":[],"bounds":{"document_bytes":16777216,"sheet_cells":100000,"rows_first":2000,"rows_last":500,"rows_between":2000,"halvings":0,"cell_chars":16384,"cell_head_chars":4096},"cells_cut":0,"cells_raw":0,"read":"whole","date_system":"1900"}

{"sheet":"Tabelle1","index":0,"n_rows":42,"n_cols":9,"rows_kept":42,"cut":false,"hidden":false,"merged":[]}
["Programmieren mit Makros",null,null,null,"in Excel"]
["Unterrichtsstunde von Christoph Pigge 12.1.2012",null,null,null,null,"Ergänzung Haftendorn"]
["Kurs Mathematik und Computer  ",null,null,null,null,"www.mathematik-verstehen.de Bereich Informatik"]
[null,null,null,null,null,null,null,"Bereich Arithmetik"]
[null,null,1024]
[null,null,1,1023,"zu klein"]
[null,null,2,null,"Dreiecksza."]
["Hinweise:",null,4,null,"Gauß","Mersenne-Za.Mers.Prim.Za."]
["Stelle bei Exel-Optionen",null,8,"n","n*(n+1)/2","2^n-1","z","z*(z+1)/2"]
["(ganz oben links)",null,16,1,{"$f":"D10*(D10+1)/2","v":1},{"$f":"2^D10-1","v":1}]
["Entwicklertools",null,32,2,{"$f":"D11*(D11+1)/2","v":3},{"$f":"2^D11-1","v":3},"prim",6,"vollkommen"]
["Registerkarte anzeigen ein.",null,64,3,6,7,"prim",28,"vollkommen"]
[null,null,128,4,10,15]
["Klicke auf Einfügen",null,256,5,15,31,"prim",496,"vollkommen"]
["Formularsteuerelemente",null,512,6,21,63]
["ziehe ein Rechteck auf",null,null,7,28,127,"prim",8128,"vollkommen"]
["Beim Loslassen wähle NEU",null,null,8,36,255]
[null,null,null,9,45,511]
["Sieh dir mit re-Maus auf den Buttons hier",null,null,10,55,1023]
["Makro Zuweisen",null,null,11,66,2047]
["Bearbeiten",null,null,12,78,4095]
["an, was hier gemacht ist.",null,null,13,91,8191,"prim",33550336,"vollkommen"]
[null,null,null,14,105,16383]
[null,null,null,15,120,32767]
["Zur Mathematik:",null,null,16,136,65535]
["Lies  bei Wikipedia",null,null,17,153,131071,"prim",{"$f":"F26*(F26+1)/2","v":8589869056},"leider zu groß"]
[null,null,null,18,171,262143]
["Vollkommene Zahl",null,null,19,190,524287,"prim",{"$f":"F28*(F28+1)/2","v":137438691328},"leider zu groß"]
[null,null,null,20,210,1048575]
["Mersenne Primzahl",null,null,21,231,2097151]
[null,null,null,22,253,4194303]
["Speziell den Zusammenhang",null,null,23,276,8388607]
["mit den Dreieckszahlen,",null,null,24,300,16777215]
["der Summe der ersten Nat. Zahlen",null,null,25,325,33554431]
[null,null,null,26,351,67108863]
[null,null,null,27,378,134217727]
[null,null,null,28,406,268435455]
[null,null,null,29,435,536870911]
[null,null,null,30,465,1073741823]
[null,null,null,31,496,2147483647,"prim",{"$f":"F40*(F40+1)/2","v":2.3058430081399521E+18},"leider zu groß"]
[null,null,null,32,528,4294967295]
[null,null,null,33,561,8589934591]

{"sheet":"Tabelle2","index":1,"n_rows":0,"n_cols":0,"rows_kept":0,"cut":false,"hidden":false,"merged":[]}

{"sheet":"Tabelle3","index":2,"n_rows":0,"n_cols":0,"rows_kept":0,"cut":false,"hidden":false,"merged":[]}